[Event "WYCC 2018 G18"]
[Site "Halkidiki"]
[Date "2018.10.21"]
[Round "2"]
[White "Priyanka, Kumari"]
[Black "Stashis, Anna"]
[Result "1-0"]
[ECO "B33"]
[WhiteElo "2005"]
[BlackElo "1979"]
[Annotator "NA"]
[PlyCount "139"]
[EventDate "2018.10.20"]
[EventType "swiss"]
[EventCountry "GRE"]
[SourceTitle "playchess.com"]
[Source "ChessBase"]
[SourceQuality "1"]
[TimeControl "40/5400+30:1800+30"]

1. e4 {[%emt 0:00:05]} c5 {[%emt 0:00:00]} 2. Nf3 {[%emt 0:00:09]} Nc6 {[%emt 0:00:00]} 3. d4 {[%emt 0:00:08]} cxd4 {[%emt 0:00:00]} 4. Nxd4 {[%emt 0:00:05]} Nf6 {[%emt 0:00:04]} 5. Nc3 {[%emt 0:00:06]} e5 {[%emt 0:00:15]} 6. Ndb5 {[%emt 0:00:07]} d6 {[%emt 0:00:16]} 7. Bg5 {[%emt 0:00:14]} a6 {[%emt 0:00:11]} 8. Na3 {[%emt 0:00:09]} b5 {[%emt 0:00:14]} 9. Bxf6 {[%emt 0:00:54]} gxf6 {[%emt 0:00:38]} 10. Nd5 {[%emt 0:00:13]} f5 {[%emt 0:02:14]} 11. Bd3 {[%emt 0:00:45]} Be6 {[%emt 0:02:50]} 12. O-O {[%emt 0:03:24]} Bxd5 {[%emt 0:10:43]} 13. exd5 {[%emt 0:00:08]} Ne7 {[%emt 0:00:04]} 14. Re1 {[%emt 0:00:36] B33: Sicilian: Pelikan and Sveshnikov Variations} Bg7 {[%emt 0:11:11]} 15. c3 {[%emt 0:00:31]} Qd7 {[%emt 0:18:29]} (15... O-O 16. Nc2 Re8 17. Qh5 e4 18. Bf1 Nxd5 19. Qxf5 Re5 20. Qh3 Qb6 21. Rad1 Rae8 22. Rxe4 Rxe4 23. Rxd5 {½-½ (41) Topalov,V (2749)-Mamedov,R (2704) Shamkir 2018}) 16. Nc2 {[%emt 0:06:55]} O-O {[%emt 0:08:06]} 17. Bf1 {[%emt 0:05:35]} f4 {[%emt 0:20:07]} 18. g3 {[%emt 0:03:23]} fxg3 $146 {[%emt 0:03:37]} ({Predecessor:} 18... Ng6 19. Qe2 f5 20. Bh3 Qf7 21. Rad1 Qf6 22. Kh1 Rac8 {0-1 (47) Deak,B (1870)-Veres,I (2024) Hungary 2008}) 19. hxg3 {[%emt 0:00:22]} Qf5 {[%emt 0:02:16]} 20. Qd3 {[%emt 0:11:40]} Qg5 {[%emt 0:02:18]} 21. Ne3 {[%emt 0:12:58]} f5 {[%emt 0:02:07]} 22. Bg2 {[%emt 0:01:45]} f4 {[%emt 0:03:53]} 23. Nf1 {[%emt 0:00:25]} Nf5 {[%emt 0:02:26]} 24. Be4 {[%emt 0:03:21]} h5 {[%emt 0:02:53]} 25. Bxf5 {[%emt 0:10:49]} Rxf5 {[%emt 0:00:35]} 26. Nd2 {[%emt 0:00:50]} fxg3 {[%emt 0:04:15]} 27. fxg3 {[%emt 0:00:57]} h4 {[%emt 0:02:12]} 28. Ne4 {[%emt 0:01:35]} Qg4 {[%emt 0:00:40]} 29. Nf2 {[%emt 0:11:54]} Qg5 {[%emt 0:01:15]} 30. Ne4 {[%emt 0:12:43]} Qg4 {[%emt 0:00:27]} 31. Nf2 {[%emt 0:01:24]} Qg5 {[%emt 0:00:09]} 32. Nh3 {[%emt 0:02:39]} Qg4 {[%emt 0:00:44]} 33. Re4 {[%emt 0:00:51]} Qf3 {[%emt 0:00:41]} 34. Qxf3 {[%emt 0:02:05]} Rxf3 {[%emt 0:00:06]} 35. Rxh4 {[%emt 0:00:07]} Rxg3+ {[%emt 0:00:09]} 36. Kf2 {[%emt 0:02:47]} Rg6 {[%emt 0:01:14]} 37. Rg1 {[%emt 0:00:37]} Rf8+ {[%emt 0:00:09]} 38. Ke2 {[%emt 0:00:11]} Rff6 {[%emt 0:00:40]} 39. Rhg4 {[%emt 0:00:49]} Rxg4 {[%emt 0:00:46]} 40. Rxg4 {[%emt 0:00:00]} Rh6 {[%emt 0:00:00]} 41. Ng5 {[%emt 0:03:04]} Rg6 {[%emt 0:06:08]} 42. Kf3 {[%emt 0:00:17]} Bh6 {[%emt 0:03:06]} 43. Ne4 {[%emt 0:03:21]} Rxg4 {[%emt 0:01:01]} 44. Kxg4 {[%emt 0:00:09]} Bf8 {[%emt 0:01:56]} 45. Kf5 {[%emt 0:02:36]} Kf7 {[%emt 0:01:03]} 46. Ng5+ {[%emt 0:05:45]} Ke7 {[%emt 0:00:57]} 47. Ne6 {[%emt 0:01:36]} Bh6 {[%emt 0:02:16]} 48. Nc7 {[%emt 0:00:49]} Bc1 {[%emt 0:00:22]} 49. b3 {[%emt 0:01:25]} Bb2 {[%emt 0:01:25]} 50. Nxa6 {[%emt 0:01:09]} Bxc3 {[%emt 0:00:06]} 51. Nc7 {[%emt 0:02:48]} b4 {[%emt 0:00:19]} 52. Ke4 {[%emt 0:00:17]} Kd7 {[%emt 0:01:16]} 53. Nb5 {[%emt 0:00:09]} Be1 {[%emt 0:03:11]} 54. Kd3 {[%emt 0:00:10]} Bf2 {[%emt 0:00:38]} 55. a3 {[%emt 0:03:39]} bxa3 {[%emt 0:02:13]} 56. Nxa3 {[%emt 0:00:06]} Bc5 {[%emt 0:00:35]} 57. Nc4 {[%emt 0:01:38]} Kc7 {[%emt 0:02:16]} 58. Nd2 {[%emt 0:00:34]} Bb6 {[%emt 0:05:05]} 59. Kc4 {[%emt 0:00:50]} Ba7 {[%emt 0:00:39]} 60. Kb5 {[%emt 0:00:37]} Bd4 {[%emt 0:00:42]} 61. Ne4 {[%emt 0:00:16]} Be3 {[%emt 0:00:33]} 62. b4 {[%emt 0:01:38]} Bd4 $2 {[%emt 0:01:02] [#]} (62... Bh6 $11) 63. Ka6 $1 {[%emt 0:01:20]} Bg1 {[%emt 0:01:03]} 64. b5 {[%emt 0:03:27]} Be3 {[%emt 0:01:13]} 65. Nc3 {[%emt 0:00:44]} Bb6 $11 {[%emt 0:01:23]} 66. Ne4 {[%emt 0:01:18]} Bd4 {[%emt 0:01:16]} 67. Ng5 {[%emt 0:00:41]} Bf2 {[%emt 0:00:55]} 68. Ne6+ {[%emt 0:01:08]} Kb8 {[%emt 0:00:22]} 69. b6 {[%emt 0:00:20]} Bh4 {[%emt 0:00:59]} 70. Nf8 {[%emt 0:01:14]} 1-0

[Event "WYCC 2018 G18"]
[Site "Halkidiki"]
[Date "2018.10.21"]
[Round "2"]
[White "Hamedi Nia, Vesal"]
[Black "Antolak, Julia"]
[Result "1/2-1/2"]
[ECO "D84"]
[WhiteElo "1987"]
[BlackElo "2240"]
[Annotator "NA"]
[PlyCount "64"]
[EventDate "2018.10.20"]
[EventType "swiss"]
[EventCountry "GRE"]
[SourceTitle "playchess.com"]
[Source "ChessBase"]
[SourceQuality "1"]
[TimeControl "40/5400+30:1800+30"]

1. d4 {[%emt 0:00:00]} Nf6 {[%emt 0:00:00]} 2. c4 {[%emt 0:00:11]} g6 {[%emt 0:00:00]} 3. Nc3 {[%emt 0:00:13]} d5 {[%emt 0:00:00]} 4. Bf4 {[%emt 0:00:21]} Bg7 {[%emt 0:00:00]} 5. e3 {[%emt 0:00:08]} O-O {[%emt 0:00:05]} 6. cxd5 {[%emt 0:00:35]} Nxd5 {[%emt 0:01:37]} 7. Nxd5 {[%emt 0:00:18]} Qxd5 {[%emt 0:00:06]} 8. Bxc7 {[%emt 0:00:21]} Na6 {[%emt 0:02:26]} 9. Bxa6 {[%emt 0:01:06]} Qxg2 {[%emt 0:01:33]} 10. Qf3 {[%emt 0:00:08]} Qxf3 {[%emt 0:00:06]} 11. Nxf3 {[%emt 0:00:04]} bxa6 {[%emt 0:00:05]} 12. Rc1 {[%emt 0:00:50]} f6 {[%emt 0:07:28] D84: Grünfeld: 4 Bf4 Bg7 5 e3 0-0 6 cxd5} 13. Rg1 {[%emt 0:22:19]} Rf7 {[%emt 0:02:32]} 14. Ke2 {[%emt 0:08:17]} Bb7 {[%emt 0:15:41]} 15. b3 {[%emt 0:11:41] [#]} Raf8 $146 {[%emt 0:08:10]} ({Predecessor:} 15... Bf8 16. Ba5 e6 17. Nd2 e5 18. dxe5 fxe5 19. f3 Ba3 20. Rc2 {1-0 (57) Batchuluun,T (2571)-Durarbayli,V (2633) Ulaanbaatar 2018}) 16. Rgd1 {[%emt 0:13:43]} e5 {[%emt 0:10:00]} 17. d5 {[%emt 0:14:02]} e4 {[%emt 0:00:38]} 18. Nd4 {[%emt 0:14:59]} Bxd5 {[%emt 0:05:17]} 19. Rc5 {[%emt 0:01:44]} Rd7 {[%emt 0:06:34]} 20. Ba5 {[%emt 0:03:13]} Bb7 {[%emt 0:18:18]} 21. Ne6 {[%emt 0:02:05]} Rff7 {[%emt 0:03:03]} 22. Nxg7 {[%emt 0:03:04]} Kxg7 {[%emt 0:00:40]} 23. Rxd7 {[%emt 0:00:07]} Rxd7 {[%emt 0:00:04]} 24. Rc7 {[%emt 0:00:08]} Rxc7 {[%emt 0:00:04]} 25. Bxc7 {[%emt 0:00:03]} Kf7 {[%emt 0:00:15]} 26. Bb8 $11 {[%emt 0:00:16]} Ke6 {[%emt 0:00:05]} 27. Bxa7 {[%emt 0:00:10]} Bc6 {[%emt 0:01:47]} 28. Kf1 {[%emt 0:03:15]} Bb5+ {[%emt 0:00:20]} 29. Kg2 {[%emt 0:00:23]} Bd3 {[%emt 0:00:34]} 30. Bd4 {[%emt 0:00:39]} Bb1 {[%emt 0:00:41]} 31. a3 {[%emt 0:00:08]} Bc2 {[%emt 0:00:08]} 32. b4 {[%emt 0:00:04]} Bb3 {[%emt 0:02:21]} 1/2-1/2

[Event "WYCC 2018 G18"]
[Site "Halkidiki"]
[Date "2018.10.21"]
[Round "2"]
[White "Manova, Ivana"]
[Black "Represa Perez, Mireya"]
[Result "0-1"]
[ECO "B23"]
[WhiteElo "1951"]
[BlackElo "2151"]
[Annotator "NA"]
[PlyCount "100"]
[EventDate "2018.10.20"]
[EventType "swiss"]
[EventCountry "GRE"]
[SourceTitle "playchess.com"]
[Source "ChessBase"]
[SourceQuality "1"]
[TimeControl "40/5400+30:1800+30"]

1. e4 {[%emt 0:00:00]} c5 {[%emt 0:00:00]} 2. Nc3 {[%emt 0:00:00]} a6 {[%emt 0:00:38]} 3. g3 {[%emt 0:01:49]} b5 {[%emt 0:01:24]} 4. Bg2 {[%emt 0:00:38]} Bb7 {[%emt 0:00:07]} 5. f4 {[%emt 0:02:43]} e6 {[%emt 0:01:13]} 6. d3 {[%emt 0:03:41]} d5 {[%emt 0:08:32]} 7. Qe2 {[%emt 0:02:08] B23: Closed Sicilian: Lines without g3} (7. exd5 exd5 8. Nf3 Nf6 9. O-O Be7 10. Nh4 Qd7 11. f5 h6 12. Bf4 Nc6 13. Qd2 O-O-O 14. a3 Rhe8 {0-1 (55) Andriasian,Z (2631)-Zhigalko,S (2664) Martuni 2013}) 7... Be7 {[%emt 0:02:43]} 8. Nf3 {[%emt 0:05:47]} Nc6 {[%emt 0:05:25]} 9. O-O {[%emt 0:01:35]} Nd4 {[%emt 0:09:30]} 10. Qf2 {[%emt 0:07:35]} Rc8 $146 {[%emt 0:04:57]} ({Predecessor:} 10... Nf6 11. exd5 Ng4 12. Qd2 {0-1 (29) Konik,M (2085)-Lisanti,A (2249) Heusenstamm 2017}) 11. Kh1 {[%emt 0:06:59]} Nf6 {[%emt 0:03:14]} 12. exd5 {[%emt 0:22:57]} Ng4 {[%emt 0:15:04]} 13. Qd2 {[%emt 0:00:14]} exd5 {[%emt 0:01:07]} 14. Ne2 {[%emt 0:09:46]} Nxf3 {[%emt 0:01:04]} 15. Bxf3 {[%emt 0:00:20]} Nf6 {[%emt 0:00:05]} 16. b3 {[%emt 0:04:21]} Qc7 {[%emt 0:03:31]} 17. Bb2 {[%emt 0:03:32]} d4 {[%emt 0:06:22]} 18. Ng1 {[%emt 0:01:55]} O-O {[%emt 0:02:34]} 19. Qg2 {[%emt 0:07:09]} Bxf3 {[%emt 0:01:37]} 20. Qxf3 {[%emt 0:00:09]} Rfe8 {[%emt 0:06:35]} 21. Nh3 {[%emt 0:05:53]} Bf8 {[%emt 0:04:28]} 22. Rfe1 {[%emt 0:05:50]} Qa5 {[%emt 0:05:20]} 23. Re5 {[%emt 0:02:37]} Bd6 {[%emt 0:02:34]} 24. Rf5 {[%emt 0:02:12]} Re3 {[%emt 0:02:38]} 25. Qb7 {[%emt 0:01:51]} Rce8 {[%emt 0:00:01]} 26. Rg1 {[%emt 0:00:41]} Re2 {[%emt 0:06:15]} 27. Ng5 {[%emt 0:00:18]} Ng4 {[%emt 0:01:28]} 28. Qxf7+ {[%emt 0:00:22]} Kh8 {[%emt 0:00:05]} 29. Nf3 {[%emt 0:00:45]} Nf2+ {[%emt 0:04:25]} 30. Kg2 {[%emt 0:00:02]} Nxd3+ {[%emt 0:00:22]} 31. Kh3 {[%emt 0:00:37]} Nxb2 {[%emt 0:00:52]} 32. Ne5 {[%emt 0:00:28]} Qd8 {[%emt 0:00:38]} 33. Qh5 {[%emt 0:00:53] [#]} Bxe5 $1 {[%emt 0:00:39]} 34. Qxe2 {[%emt 0:00:13]} Bf6 {[%emt 0:00:33]} 35. Qg4 {[%emt 0:00:54]} d3 {[%emt 0:00:34]} 36. cxd3 {[%emt 0:00:27]} Nxd3 {[%emt 0:00:08]} 37. Qf3 {[%emt 0:00:26]} Qd7 {[%emt 0:00:55]} 38. Qd5 {[%emt 0:00:37]} Qxd5 {[%emt 0:00:45]} 39. Rxd5 {[%emt 0:00:02]} Bd4 {[%emt 0:00:21]} 40. Rg2 {[%emt 0:00:00]} Nf2+ {[%emt 0:00:00]} 41. Rxf2 {[%emt 0:02:40]} Bxf2 {[%emt 0:01:51]} 42. Kg2 {[%emt 0:00:20]} Be3 {[%emt 0:06:13]} 43. Rd6 {[%emt 0:02:55]} Ra8 {[%emt 0:00:32]} 44. Kf3 {[%emt 0:00:47]} Bc1 {[%emt 0:00:38]} 45. Ke4 {[%emt 0:01:26]} h6 {[%emt 0:00:59]} 46. f5 {[%emt 0:04:05]} Bb2 {[%emt 0:01:30]} 47. Kd5 $19 {[%emt 0:01:33]} (47. Rc6 $142) 47... Rc8 {[%emt 0:00:35]} 48. Rxa6 {[%emt 0:01:04]} c4 {[%emt 0:00:04]} 49. bxc4 {[%emt 0:07:45]} bxc4 {[%emt 0:00:08]} 50. f6 {[%emt 0:00:04]} gxf6 {[%emt 0:00:30]} 0-1

[Event "WYCC 2018 G18"]
[Site "Halkidiki"]
[Date "2018.10.21"]
[Round "2"]
[White "Sevilla, Julia"]
[Black "Mocanu, Valeria"]
[Result "1/2-1/2"]
[ECO "E01"]
[WhiteElo "1947"]
[BlackElo "1800"]
[Annotator "NA"]
[PlyCount "88"]
[EventDate "2018.10.20"]
[EventType "swiss"]
[EventCountry "GRE"]
[SourceTitle "playchess.com"]
[Source "ChessBase"]
[SourceQuality "1"]
[TimeControl "40/5400+30:1800+30"]

1. d4 {[%emt 0:00:00]} d5 {[%emt 0:00:00]} 2. c4 {[%emt 0:00:00]} e6 {[%emt 0:00:00]} 3. g3 {[%emt 0:00:00]} Nf6 {[%emt 0:00:00]} 4. Bg2 {[%emt 0:00:00]} Bb4+ {[%emt 0:00:22]} 5. Bd2 {[%emt 0:00:00]} Be7 {[%emt 0:00:13]} 6. Nf3 {[%emt 0:00:00]} O-O {[%emt 0:00:13]} 7. O-O {[%emt 0:00:16]} b6 {[%emt 0:01:52]} 8. Qc2 {[%emt 0:01:55] E11: Damenindisch (Bogoljubow-Variante)} c5 {[%emt 0:07:10]} 9. cxd5 {[%emt 0:06:15]} exd5 {[%emt 0:00:09]} 10. Nc3 {[%emt 0:02:32]} Bb7 {[%emt 0:01:29]} 11. Rfd1 {[%emt 0:04:02]} Na6 {[%emt 0:04:05]} 12. Bf4 {[%emt 0:12:39]} Bd6 $146 {[%emt 0:32:00]} ({Vorgänger:} 12... Qc8 13. Rac1 Rd8 14. a3 h6 15. Nh4 Qe6 16. Nf5 Bf8 17. g4 cxd4 18. Rxd4 Bc5 19. Qd3 Bxd4 20. Qxd4 Nc5 21. Rd1 Nb3 22. Qb4 d4 23. Bxb7 dxc3 {0-1 (40) Zhigalko,A (2578)-Stupak,K (2565) Minsk 2018}) 13. Bxd6 {[%emt 0:06:33]} Qxd6 {[%emt 0:00:32]} 14. dxc5 {[%emt 0:08:22]} Nxc5 {[%emt 0:18:20]} 15. Nd4 {[%emt 0:10:00]} a6 {[%emt 0:04:05]} 16. Nf5 {[%emt 0:05:20]} Qe6 {[%emt 0:04:36]} 17. Nxd5 {[%emt 0:05:56]} Nxd5 {[%emt 0:05:40]} 18. Bxd5 {[%emt 0:00:05]} Bxd5 {[%emt 0:00:14]} 19. Rxd5 {[%emt 0:00:05]} Rfe8 {[%emt 0:02:23]} 20. Ne3 {[%emt 0:00:09]} Rac8 {[%emt 0:01:02]} 21. Rad1 {[%emt 0:09:10]} Ne4 {[%emt 0:01:49]} 22. Qd3 {[%emt 0:00:38]} Qf6 {[%emt 0:01:28]} 23. Ng4 {[%emt 0:04:54]} Qxb2 {[%emt 0:00:40]} 24. Qxa6 {[%emt 0:17:40]} h6 {[%emt 0:04:40]} 25. Ne3 {[%emt 0:03:11]} Nc3 {[%emt 0:01:43]} 26. R5d2 {[%emt 0:00:01]} Nxd1 {[%emt 0:01:05]} 27. Rxb2 {[%emt 0:00:02]} Nxb2 {[%emt 0:00:07]} 28. Qxb6 {[%emt 0:00:12]} Nc4 {[%emt 0:01:22]} 29. Nxc4 {[%emt 0:00:04]} Rxc4 {[%emt 0:00:04]} 30. Qb5 {[%emt 0:01:25]} Rc1+ {[%emt 0:00:43]} 31. Kg2 {[%emt 0:00:00]} Ra8 {[%emt 0:00:41]} 32. g4 {[%emt 0:02:30]} Ra1 {[%emt 0:02:43]} 33. g5 {[%emt 0:00:41]} hxg5 {[%emt 0:00:54]} 34. Qxg5 {[%emt 0:00:04]} R1xa2 {[%emt 0:00:06]} 35. e3 {[%emt 0:00:10]} R8a5 {[%emt 0:01:08]} 36. Qd8+ {[%emt 0:00:13]} Kh7 {[%emt 0:00:07]} 37. Qh4+ {[%emt 0:02:10]} Kg6 {[%emt 0:00:07]} 38. Qe4+ {[%emt 0:00:08]} Kh6 {[%emt 0:01:37]} 39. Qh4+ {[%emt 0:01:07]} Rh5 {[%emt 0:01:36]} 40. Qf4+ {[%emt 0:00:00]} Rg5+ {[%emt 0:00:00]} 41. Kf3 {[%emt 0:00:21]} Kg6 {[%emt 0:01:41]} 42. Qe4+ {[%emt 0:00:55]} Rf5+ {[%emt 0:00:34]} 43. Kg4 $17 {[%emt 0:00:50]} (43. Kg3 $11) 43... Raxf2 {[%emt 0:00:17]} 44. h4 {[%emt 0:02:23]} Rf1 {[%emt 0:16:57]} 1/2-1/2

[Event "WYCC 2018 G18"]
[Site "Halkidiki"]
[Date "2018.10.21"]
[Round "2"]
[White "Koehler, Inken"]
[Black "Cibikova, Sofia Anna"]
[Result "1/2-1/2"]
[ECO "B40"]
[WhiteElo "1934"]
[BlackElo "1809"]
[Annotator "NA"]
[PlyCount "63"]
[EventDate "2018.10.20"]
[EventType "swiss"]
[EventCountry "GRE"]
[SourceTitle "playchess.com"]
[Source "ChessBase"]
[SourceQuality "1"]
[TimeControl "40/5400+30:1800+30"]

1. e4 {[%emt 0:00:00]} c5 {[%emt 0:00:00]} 2. Nf3 {[%emt 0:00:00]} e6 {[%emt 0:00:00]} 3. d4 {[%emt 0:00:00]} cxd4 {[%emt 0:00:00]} 4. Nxd4 {[%emt 0:00:00]} Nf6 {[%emt 0:00:18]} 5. Nc3 {[%emt 0:00:08]} Nc6 {[%emt 0:00:18]} 6. Ndb5 {[%emt 0:00:31]} Bb4 {[%emt 0:00:52]} 7. a3 {[%emt 0:00:55]} Bxc3+ {[%emt 0:00:34]} 8. Nxc3 {[%emt 0:00:07]} d5 {[%emt 0:01:05]} 9. exd5 {[%emt 0:01:16]} exd5 {[%emt 0:00:41]} 10. Bd3 {[%emt 0:01:09]} d4 {[%emt 0:03:24]} 11. Ne2 {[%emt 0:01:05]} Bg4 {[%emt 0:03:30]} 12. O-O {[%emt 0:04:10]} O-O {[%emt 0:02:08]} 13. f3 {[%emt 0:03:35]} Bh5 {[%emt 0:02:40]} 14. Nf4 {[%emt 0:00:38]} Bg6 $11 {[%emt 0:05:41] LiveBook: 42 Games} 15. Nxg6 {[%emt 0:00:22]} hxg6 {[%emt 0:00:10]} 16. Bg5 {[%emt 0:04:33]} Qd6 {[%emt 0:05:45]} 17. Re1 {[%emt 0:06:09]} Rfe8 {[%emt 0:05:46]} 18. Qd2 {[%emt 0:02:01]} a6 {[%emt 0:08:13]} 19. Bh4 {[%emt 0:07:40]} Nd5 {[%emt 0:09:42]} 20. Bf2 {[%emt 0:05:16]} Qc5 {[%emt 0:09:14]} 21. Be4 {[%emt 0:09:23]} Rad8 {[%emt 0:05:12]} 22. Bxd5 {[%emt 0:06:17]} Qxd5 {[%emt 0:01:59]} 23. Rxe8+ {[%emt 0:00:24]} Rxe8 {[%emt 0:00:10]} 24. Rd1 {[%emt 0:01:20]} Qc4 {[%emt 0:05:38]} 25. Qd3 {[%emt 0:06:37]} Qxd3 {[%emt 0:01:56]} 26. Rxd3 {[%emt 0:00:22]} Re2 {[%emt 0:01:16]} 27. Bxd4 {[%emt 0:01:28]} Nxd4 {[%emt 0:01:24]} 28. Rxd4 {[%emt 0:00:06]} Rxc2 {[%emt 0:00:06]} 29. Rb4 {[%emt 0:05:52]} b5 {[%emt 0:01:31]} 30. a4 {[%emt 0:00:37]} bxa4 {[%emt 0:00:21]} 31. Rxa4 {[%emt 0:00:27]} Rxb2 {[%emt 0:00:31]} 32. Rxa6 {[%emt 0:00:06]} 1/2-1/2

[Event "WYCC 2018 G18"]
[Site "Halkidiki"]
[Date "2018.10.21"]
[Round "2"]
[White "Vlkova, Anezka"]
[Black "Perry, Tal"]
[Result "0-1"]
[ECO "C50"]
[WhiteElo "1925"]
[BlackElo "1702"]
[Annotator "NA"]
[PlyCount "68"]
[EventDate "2018.10.20"]
[EventType "swiss"]
[EventCountry "GRE"]
[SourceTitle "playchess.com"]
[Source "ChessBase"]
[SourceQuality "1"]
[TimeControl "40/5400+30:1800+30"]

1. e4 e5 {[%emt 0:00:00]} 2. Nf3 {[%emt 0:00:00]} Nc6 {[%emt 0:00:00]} 3. Bc4 {[%emt 0:00:00]} Nf6 {[%emt 0:00:06]} 4. d3 {[%emt 0:00:00]} Bc5 {[%emt 0:00:07]} 5. c3 {[%emt 0:00:21]} d6 {[%emt 0:00:10]} 6. Bg5 {[%emt 0:00:10]} h6 {[%emt 0:00:15]} 7. Bh4 {[%emt 0:00:03]} g5 {[%emt 0:00:16]} 8. Bg3 {[%emt 0:00:05]} a6 {[%emt 0:01:06]} 9. Nbd2 {[%emt 0:04:05]} Qe7 {[%emt 0:06:01]} 10. Bb3 {[%emt 0:02:28]} Be6 {[%emt 0:00:31]} 11. Qe2 {[%emt 0:02:02]} O-O-O {[%emt 0:01:31]} 12. O-O-O {[%emt 0:02:21]} Ba7 {[%emt 0:04:05]} 13. Nc4 {[%emt 0:06:17]} Bxc4 {[%emt 0:04:59]} 14. dxc4 {[%emt 0:06:19]} Rdf8 {[%emt 0:15:58]} 15. Ne1 {[%emt 0:03:11]} Nxe4 {[%emt 0:12:02]} 16. Qxe4 {[%emt 0:07:35]} f5 {[%emt 0:00:08]} 17. Qd5 {[%emt 0:03:30]} f4 {[%emt 0:00:24]} 18. Ba4 $11 {[%emt 0:09:45]} Nd8 {[%emt 0:02:00]} 19. f3 {[%emt 0:02:32]} fxg3 {[%emt 0:00:15]} 20. hxg3 {[%emt 0:00:15]} Bf2 {[%emt 0:03:20]} 21. Rh3 {[%emt 0:05:41]} g4 {[%emt 0:03:43]} 22. Rh5 {[%emt 0:14:13]} gxf3 {[%emt 0:00:54]} 23. gxf3 {[%emt 0:02:13]} Bxg3 {[%emt 0:03:35]} 24. Nd3 {[%emt 0:05:35]} Qf6 {[%emt 0:02:14]} 25. Rf1 {[%emt 0:02:07]} Ne6 {[%emt 0:07:34]} 26. Bc2 {[%emt 0:04:58]} Ng5 {[%emt 0:02:32]} 27. Nb4 {[%emt 0:11:26]} Qf4+ {[%emt 0:03:19]} 28. Kb1 {[%emt 0:00:07]} e4 {[%emt 0:03:11]} 29. Qa5 {[%emt 0:04:53]} e3 {[%emt 0:04:41]} 30. Bd3 {[%emt 0:00:48]} Qf7 {[%emt 0:06:38]} 31. Nd5 {[%emt 0:00:12]} Re8 {[%emt 0:00:38]} 32. Be2 {[%emt 0:01:03]} Ne6 {[%emt 0:01:32]} 33. Rh3 {[%emt 0:00:23]} Qf5+ {[%emt 0:00:17]} 34. Ka1 {[%emt 0:01:06]} Qxh3 {[%emt 0:00:12]} 0-1

[Event "WYCC 2018 G18"]
[Site "Halkidiki"]
[Date "2018.10.21"]
[Round "2"]
[White "Kieu, Bich Thuy"]
[Black "Salas Estrada, Ana Paola"]
[Result "1-0"]
[ECO "E45"]
[WhiteElo "1913"]
[BlackElo "1665"]
[Annotator "NA"]
[PlyCount "67"]
[EventDate "2018.10.20"]
[EventType "swiss"]
[EventCountry "GRE"]
[SourceTitle "playchess.com"]
[Source "ChessBase"]
[SourceQuality "1"]
[TimeControl "40/5400+30:1800+30"]

1. d4 Nf6 2. c4 e6 3. Nc3 Bb4 4. e3 b6 5. Nge2 Ba6 6. a3 Be7 7. Ng3 d5 8. b3 O-O 9. Be2 Nc6 10. O-O dxc4 11. Bxc4 Bxc4 12. bxc4 $15 Na5 13. Qd3 Qc8 14. Nb1 Qa6 15. Nd2 c5 16. Bb2 Rfd8 17. Qe2 Rd7 18. Rac1 Rad8 19. Rfd1 cxd4 20. exd4 Nc6 21. Nf3 Na5 22. Ne5 Rc7 23. Rc3 Nd7 24. d5 Nxe5 25. Qxe5 Qc8 26. Nh5 f6 27. Qg3 Bd6 28. Nxf6+ Kh8 29. Qh4 gxf6 30. Qxf6+ Rg7 31. Rg3 Rdg8 32. Rxg7 Qf8 33. Rf7+ Qg7 34. Rxg7 1-0

[Event "WYCC 2018 G18"]
[Site "Halkidiki"]
[Date "2018.10.21"]
[Round "2"]
[White "Tsivelekidou, Evgenia"]
[Black "Rakic, Tijana"]
[Result "1/2-1/2"]
[ECO "A56"]
[WhiteElo "1891"]
[BlackElo "1651"]
[Annotator "NA"]
[PlyCount "70"]
[EventDate "2018.10.20"]
[EventType "swiss"]
[EventCountry "GRE"]
[SourceTitle "playchess.com"]
[Source "ChessBase"]
[SourceQuality "1"]
[TimeControl "40/5400+30:1800+30"]

1. d4 {[%emt 0:00:00]} Nf6 {[%emt 0:00:29]} 2. c4 {[%emt 0:00:00]} c5 {[%emt 0:00:18]} 3. Nf3 {[%emt 0:00:00]} b5 {[%emt 0:01:57]} 4. cxb5 {[%emt 0:02:20]} a6 {[%emt 0:02:55]} 5. dxc5 {[%emt 0:07:07]} Qa5+ {[%emt 0:07:18]} 6. Bd2 {[%emt 0:06:33]} Qxb5 {[%emt 0:04:15]} 7. Qc2 {[%emt 0:08:48]} e6 {[%emt 0:02:15]} 8. b4 {[%emt 0:05:40]} Nc6 {[%emt 0:06:21]} (8... a5 $14) 9. a3 {[%emt 0:04:07]} Qb8 {[%emt 0:04:36]} 10. e3 {[%emt 0:17:23]} Be7 {[%emt 0:05:25]} 11. Nc3 {[%emt 0:02:57]} O-O {[%emt 0:01:54]} 12. Be2 $16 {[%emt 0:02:38]} Bb7 {[%emt 0:08:57]} 13. O-O {[%emt 0:04:04]} a5 {[%emt 0:05:56]} 14. Na4 {[%emt 0:06:01]} axb4 {[%emt 0:09:13]} 15. axb4 {[%emt 0:00:12]} Nd5 {[%emt 0:09:05]} 16. b5 {[%emt 0:02:50]} Ne5 {[%emt 0:01:22]} 17. Nd4 {[%emt 0:03:04]} Rc8 {[%emt 0:06:52]} 18. f4 {[%emt 0:07:57]} Ng6 {[%emt 0:02:37]} 19. c6 {[%emt 0:01:49]} dxc6 {[%emt 0:00:11]} 20. bxc6 {[%emt 0:00:51]} Ba6 {[%emt 0:00:49]} 21. Bxa6 {[%emt 0:02:01]} Rxa6 {[%emt 0:01:54]} 22. Rab1 {[%emt 0:01:59]} Qa8 {[%emt 0:04:33]} 23. Nc3 {[%emt 0:01:51]} Nxc3 {[%emt 0:01:21]} 24. Qxc3 {[%emt 0:01:57]} Bf6 {[%emt 0:00:40]} 25. c7 {[%emt 0:02:22]} Bxd4 {[%emt 0:01:17]} 26. exd4 {[%emt 0:03:45]} Rc6 {[%emt 0:01:22]} 27. Rb8 {[%emt 0:01:20]} Rxc3 {[%emt 0:01:22]} 28. Rxa8 {[%emt 0:00:24]} R3xc7 {[%emt 0:00:21]} 29. Rxc8+ {[%emt 0:00:26]} Rxc8 {[%emt 0:00:05]} 30. f5 {[%emt 0:00:22]} exf5 {[%emt 0:00:44]} 31. Rxf5 {[%emt 0:00:15]} Rd8 {[%emt 0:03:20]} 32. Bc3 {[%emt 0:00:59]} Ne7 {[%emt 0:00:29]} 33. Re5 {[%emt 0:00:35]} Ng6 {[%emt 0:03:11]} 34. Rb5 {[%emt 0:01:09]} f6 {[%emt 0:01:02]} 35. Rb7 {[%emt 0:01:43]} Nf4 {[%emt 0:00:40]} 1/2-1/2

[Event "WYCC 2018 G18"]
[Site "Halkidiki"]
[Date "2018.10.21"]
[Round "2"]
[White "Dong, Khanh Linh"]
[Black "Ramirez Toledo, Ayleen Maribel"]
[Result "1-0"]
[ECO "E91"]
[WhiteElo "1879"]
[BlackElo "1545"]
[Annotator "NA"]
[PlyCount "39"]
[EventDate "2018.10.20"]
[EventType "swiss"]
[EventCountry "GRE"]
[SourceTitle "playchess.com"]
[Source "ChessBase"]
[SourceQuality "1"]
[TimeControl "40/5400+30:1800+30"]

1. d4 {[%emt 0:00:00]} Nf6 {[%emt 0:00:00]} 2. Nf3 {[%emt 0:00:00]} g6 {[%emt 0:00:00]} 3. c4 {[%emt 0:00:01]} Bg7 {[%emt 0:00:00]} 4. Nc3 {[%emt 0:00:04]} d6 {[%emt 0:00:06]} 5. e4 {[%emt 0:00:05]} O-O {[%emt 0:00:05]} 6. Be2 {[%emt 0:00:04]} Nbd7 {[%emt 0:00:46]} 7. O-O {[%emt 0:00:46]} e5 {[%emt 0:00:34]} 8. dxe5 {[%emt 0:00:19]} Nxe5 {[%emt 0:02:16]} 9. Nxe5 {[%emt 0:01:34]} dxe5 {[%emt 0:00:07]} 10. Qxd8 {[%emt 0:04:41]} Rxd8 {[%emt 0:00:02]} 11. Bg5 {[%emt 0:00:31]} c6 {[%emt 0:21:35]} 12. f4 {[%emt 0:09:23]} Re8 $16 {[%emt 0:02:12] [#]} (12... h6 $11 {remains equal.} 13. fxe5 hxg5 14. exf6 Bf8) 13. f5 $1 {[%emt 0:06:18]} gxf5 {[%emt 0:16:34]} 14. exf5 {[%emt 0:01:40]} a5 {[%emt 0:16:12]} 15. Rad1 {[%emt 0:03:55]} a4 {[%emt 0:12:35]} 16. Rd6 {[%emt 0:03:59]} Nd7 {[%emt 0:00:25]} 17. Ne4 {[%emt 0:12:32]} Rb8 {[%emt 0:09:53]} 18. Rf3 {[%emt 0:03:25]} b5 {[%emt 0:05:46]} 19. Rg3 {[%emt 0:02:37]} Kh8 {[%emt 0:01:27]} 20. Bh5 {[%emt 0:06:11]} 1-0